Cogmind - Beta 12 *** ADVENTURER MODE // 2023.06.04 @ 20:06:20 Player: FrigidRock Result: Destroyed by Y-45 Defender with Beam Rifle Performance ------------- Evolutions (1) 500 Regions Visited (3) 600 Robots Destroyed (9) 45 Value Destroyed (207) 207 Prototype IDs (2) 40 Alien Tech Used (0) 0 Bonus (14) 14 TOTAL SCORE: 1406 Bonus ------- Follower Combat Kills 14 Cogmind --------- Core Integrity 0/400 Matter 250/300 Energy 100/100 System Corruption 0% Temperature Cool (9) Movement Core (50) Location -9/Materials Parts ------- > --- POWER (1) -------- (None) > --- PROPULSION (4) --- Aluminum Leg > --- UTILITY (2) ------ (None) > --- WEAPON (2) ------- (None) > --- INVENTORY (5) ---- Medium Storage Unit Large Storage Unit High-capacity Storage Unit Peak State ------------ > --- POWER ------------ Ion Engine > --- PROPULSION ------- Wheel Compact Wheel > --- UTILITY ---------- Small Storage Unit Large Storage Unit > --- WEAPON ----------- EM Pulse Gun Small Laser > --- INVENTORY -------- Light Ion Engine [Rating: 7] Favorites ----------- Power Light Ion Engine Engine Light Ion Engine Propulsion Aluminum Leg Leg Aluminum Leg Wheel Wheel Hover Unit Improved Hover Unit Utility Medium Storage Unit Storage Medium Storage Unit Weapon Mining Laser Energy Gun Small Laser Special Weapon Mining Laser Build | -11 -10 -10 -9 ------- Run | Jun Mat Min Mat Slots Evolved 2 | . . . 2 Power . | . . . . Propulsion 2 | . . . 2 Utility . | . . . . Weapon . | . . . . Parts Attached 22 | 7 7 1 7 Power 3 | 2 1 . . Engine 3 | 2 1 . . Core . | . . . . Reactor . | . . . . Propulsion 9 | 2 2 1 4 Treads . | . . . . Leg 4 | . 2 1 1 Wheel 4 | 2 . . 2 Hover 1 | . . . 1 Flight . | . . . . Utility 5 | 1 2 . 2 Device . | . . . . Storage 5 | 1 2 . 2 Processor . | . . . . Hackware . | . . . . Protection . | . . . . Artifact . | . . . . Weapon 5 | 2 2 . 1 Energy Gun 2 | 2 . . . Energy Cannon . | . . . . Ballistic Gun . | . . . . Ballistic Cannon . | . . . . Launcher . | . . . . Special Weapon 3 | . 2 . 1 Impact Weapon . | . . . . Slashing Weapon . | . . . . Piercing Weapon . | . . . . Special Melee Weapon . | . . . . Unidentified Prototypes . | . . . . Parts Lost 8 | . 3 2 3 Power 1 | . 1 . . Propulsion 4 | . 1 . 3 Utility . | . . . . Weapon 3 | . 1 2 . Highest Loss Streak 3 | . 3 2 2 To Critical Strikes . | . . . . Average Slot Usage (%) 70 | . 82 79 19 Engine 11 | . 14 13 . Leg 12 | . 6 26 . Wheel 11 | . 21 . 9 Storage 12 | . 14 13 3 Energy Gun 10 | . 23 . . Special Weapon 11 | . 2 26 . Naked Turns 53 | . . 18 35 Heaviest Build 33 | 13 33 15 20 Greatest Support 26 | 26 26 20 22 Greatest Overweight (x) 1 | . 1 . 1 Average Overweight (x) . | . . . . Largest Inventory Capacity 15 | 8 15 10 15 Average Capacity 11 | 7 13 9 8 Most Carried 4 | 1 2 3 4 Average Carried 2 | . 1 2 3 Final Capacity 10 | 8 10 5 5 Final Carried 3 | 1 1 3 3 Class Distribution -------------------- 100% | Mutant Dominant Class ---------------- Mutant | -10/Materials Mutant | -10/Mines Mutant | -9/Materials Resources | -11 -10 -10 -9 ----------- Run | Jun Mat Min Mat Matter Collected 340 | 186 114 40 . Remotely . | . . . . Salvage Created 202 | . 202 . . Parts 17 | . 16 1 . Haulers Intercepted . | . . . . Recyclers Shooed . | . . . . Parts Field Recycled . | . . . . Retrieved Matter . | . . . . Parts Self-Destructed . | . . . . Prevented . | . . . . Kills | -11 -10 -10 -9 ------- Run | Jun Mat Min Mat Combat Hostiles Destroyed 8 | . 7 1 . Guns 6 | . 6 . . Cannons 1 | . 1 . . Classes Destroyed 3 | . 2 1 . Tunneler 1 | . . 1 . Swarmer 3 | . 2 1 . Grunt 5 | . 5 . . Best Kill Streak 3 | . 3 1 . Combat Bots Only 3 | . 3 1 . Max Kills in Single Turn 1 | . 1 1 . Gunslinging . | . . . . Exploded . | . . . . Melee . | . . . . Uniques/NPCs Destroyed . | . . . . Combat | -11 -10 -10 -9 -------- Run | Jun Mat Min Mat Damage Taken 1230 | . 347 235 648 Core 543 | . 97 37 409 Absorbed by Shields . | . . . . Core Remaining (%) 73 | 100 . 46 . Volleys Fired 32 | . 25 7 . Largest 2 | . 2 2 . Hottest 200 | . 140 200 . Shots Fired 52 | . 38 14 . Gun 35 | . 35 . . Cannon . | . . . . Launcher . | . . . . Special 17 | . 3 14 . Kinetic . | . . . . Thermal 42 | . 28 14 . Explosive . | . . . . Electromagnetic 10 | . 10 . . Robot Hit Streak 17 | . 17 4 . Robot Miss Streak 3 | . 2 3 . Penetration Max . | . . . . Secondary Targets 1 | . 1 . . Max Gunslinging Chain 1 | . 1 . . Shots Hit Robots 37 | . 29 8 . Core Hits 12 | . 11 1 . Critical Kills . | . . . . Critical Parts Destroyed . | . . . . Critical Strikes . | . . . . Melee Attacks . | . . . . Impact . | . . . . Slashing . | . . . . Piercing . | . . . . Sneak Attacks . | . . . . Combat Hostiles . | . . . . Follow-up Attacks . | . . . . Damage Inflicted 569 | . 372 196 1 Guns 324 | . 324 . . Cannons . | . . . . Explosions . | . . . . Melee . | . . . . Ramming 5 | . . 4 1 Kinetic . | . . . . Thermal 476 | . 284 192 . Explosive . | . . . . Electromagnetic 88 | . 88 . . Impact . | . . . . Slashing . | . . . . Piercing . | . . . . Highest Corruption . | . . . . Average Corruption . | . . . . Corruption Purged . | . . . . Corruption Blocked . | . . . . Overload Shots . | . . . . Overflow Damage 7 | . . 7 . Projectiles 7 | . . 7 . Explosions . | . . . . Melee . | . . . . Knockbacks . | . . . . Impact . | . . . . Kinetic . | . . . . Secondary . | . . . . Self-Inflicted Damage 2 | . . 2 . Shots . | . . . . Rammed 2 | . . 1 1 Targets Rammed 2 | . . 1 1 Kicked . | . . . . Crushed . | . . . . Highest Temperature 289 | . 180 289 11 Average Temperature 94 | . 79 117 11 Received Heat Transfer 366 | . 192 9 165 Siege Activations . | . . . . Robots Corrupted . | . . . . Combat Hostiles . | . . . . Parts Fried . | . . . . Impact Corruptions . | . . . . Robots Melted 1 | . . 1 . Combat Hostiles 1 | . . 1 . Parts Melted . | . . . . Heat Transferred 1025 | . 625 400 . Parts Sabotaged . | . . . . Parts Stolen . | . . . . Parts Stripped . | . . . . Power Chain Reactions . | . . . . Missiles Intercepted . | . . . . Alert | -11 -10 -10 -9 ------- Run | Jun Mat Min Mat Peak Influence 166 | . 146 92 166 Initial 47 | . . 47 16 Average 57 | . 55 77 38 Maximum Alert Level . | . . . . Low Security (%) 100 | 100 100 100 100 Level 1 . | . . . . Level 2 . | . . . . Level 3 . | . . . . Level 4 . | . . . . Level 5 . | . . . . High Security . | . . . . Max Security . | . . . . Squads Dispatched 3 | . 1 . 2 Investigation 2 | . 1 . 1 Extermination . | . . . . Reinforcement 1 | . . . 1 Assault . | . . . . Garrison . | . . . . Intercept . | . . . . Searches Triggered . | . . . . Construction Impeded . | . . . . Haulers Reinforced . | . . . . Active Scanning Responses . | . . . . Cargo Convoy Interrupts . | . . . . Stealth | -11 -10 -10 -9 --------- Run | Jun Mat Min Mat Distress Signals 2 | . 1 . 1 Communications Jammed . | . . . . Distress Signals . | . . . . Times Spotted 51 | . 11 14 26 Peak Tracking Total 19 | . 6 10 19 Tactical Retreats 3 | . . 1 2 Traps | -11 -10 -10 -9 ------- Run | Jun Mat Min Mat Traps Triggered 2 | . 1 . 1 Indirectly . | . . . . Trap Hack Attempts . | . . . . Triggered . | . . . . Disarmed . | . . . . Reprogrammed . | . . . . Reused . | . . . . Traps Extracted . | . . . . Installed . | . . . . Triggered . | . . . . Machines | -11 -10 -10 -9 ---------- Run | Jun Mat Min Mat Machines Disabled . | . . . . Max in Single Turn . | . . . . Machines Repaired . | . . . . Machines Sabotaged . | . . . . Overloaded Fab Kills . | . . . . Hacking | -11 -10 -10 -9 --------- Run | Jun Mat Min Mat Machines Accessed 4 | . 3 . 1 Terminals 4 | . 3 . 1 Fabricators . | . . . . Repair Stations . | . . . . Recycling Units . | . . . . Scanalyzers . | . . . . Garrison Access . | . . . . Total Hacks 8 | . 4 . 4 Successful 3 | . 1 . 2 Failed 5 | . 3 . 2 Catastrophic . | . . . . Database Lockouts . | . . . . Manual . | . . . . Terminals 8 | . 4 . 4 Fabricators . | . . . . Repair Stations . | . . . . Recycling Units . | . . . . Scanalyzers . | . . . . Garrison Access . | . . . . Terminal Hacks 3 | . 1 . 2 Prototype ID Bank 1 | . . . 1 Zone Layout 2 | . 1 . 1 Fabricator Hacks . | . . . . Repair Station Hacks . | . . . . Recycling Unit Hacks . | . . . . Scanalyzer . | . . . . Garrison Access Hacks . | . . . . Unauthorized Hacks . | . . . . Terminals . | . . . . Fabricators . | . . . . Repair Stations . | . . . . Recycling Units . | . . . . Scanalyzers . | . . . . Garrison Access . | . . . . Data Cores Recovered . | . . . . Used . | . . . . Hacking Detections 3 | . 2 . 1 Full Trace Events . | . . . . Feedback Events . | . . . . Feedback Blocked . | . . . . Robot Schematics Acquired . | . . . . Robots Built . | . . . . Authchips . | . . . . Time . | . . . . Total Robot Build Rating . | . . . . Part Schematics Acquired . | . . . . Parts Built . | . . . . Authchips . | . . . . Time . | . . . . Total Part Build Rating . | . . . . Parts Repaired . | . . . . Time . | . . . . Parts Recycled . | . . . . Recycled Matter . | . . . . Retrieved Matter . | . . . . Retrieved Components . | . . . . Parts Scanalyzed . | . . . . Part Schematics Acquired . | . . . . Parts Damaged . | . . . . Bothacking | -11 -10 -10 -9 ------------ Run | Jun Mat Min Mat Used RIF Installer . | . . . . Robots Hacked . | . . . . Non-combat . | . . . . Combat . | . . . . Robot Hacks Applied . | . . . . Relay Couplers Released . | . . . . Fabnet Peak Effective % . | . . . . Robots Rewired . | . . . . Allies Hacked . | . . . . Hacks Repelled . | . . . . Allies | -11 -10 -10 -9 -------- Run | Jun Mat Min Mat Total Allies 3 | . . 3 . Largest Group 3 | . . 3 . Highest-Rated Group 40 | . . 40 . Highest-Rated Ally 16 | . . 16 . Total Orders . | . . . . Ally Attacks 18 | . . 18 . Total Damage 182 | . . 182 . Kills 3 | . . 3 . Allies Corrupted . | . . . . Allies Melted . | . . . . Intel | -11 -10 -10 -9 ------- Run | Jun Mat Min Mat Robot Analysis Total . | . . . . Derelict Logs Recovered 1 | . . 1 . Drone Launches . | . . . . Drone Recoveries . | . . . . Exploration | -11 -10 -10 -9 ------------- Run | Jun Mat Min Mat Turns Passed 819 | 47 337 299 136 Spaces Moved 702 | 42 231 225 204 Core 174 | 2 . 34 138 Treads . | . . . . Legs 234 | . 42 191 1 Wheels 273 | 40 189 . 44 Hover 21 | . . . 21 Flight . | . . . . Fastest Speed 50 | 50 90 50 50 Average Speed 93 | 88 107 109 59 Slowest Speed 120 | 100 120 120 120 Overloaded Moves . | . . . . Propulsion Burnouts . | . . . . Robots Hopped . | . . . . Cave-ins Triggered . | . . . . Exploration Rate (%) 30 | 3 41 42 35 Regions Visited 3 Branch Regions 1 Pre-discovered Areas 1 | . . 1 . Known Exits Taken . | . . . . Unknown Exits Taken 3 | 1 1 1 . Scrap Searched . | . . . . Spaces Dug . | . . . . Terrain Destroyed 5 | . 1 4 . Melee . | . . . . Projectile 5 | . 1 4 . AOE . | . . . . Terrain Rammed . | . . . . Walls Destroyed . | . . . . Machines Disabled . | . . . . Actions | -11 -10 -10 -9 --------- Run | Jun Mat Min Mat Total 774 | 48 274 234 218 Wait 2 | . . . 2 Move 699 | 41 230 224 204 Hop . | . . . . Pick Up 3 | . 1 1 1 Fast Attach 15 | 6 5 . 4 Attach 4 | . 1 . 3 Detach 2 | . . . 2 Swap 3 | 1 1 1 . Drop 4 | . 3 . 1 Fire 32 | . 25 7 . Melee . | . . . . Ram 2 | . . 1 1 Kick . | . . . . Crush . | . . . . Escape Stasis . | . . . . Rewire 8 | . 8 . . Trap . | . . . . Miscellaneous . | . . . . Route ------- -11/Junkyard -10/Materials (discovered 2 exits: *Mat / [*Min]) -10/Mines (discovered 2 exits: *Mat x2) -9/Materials History --------- Turn | Location | Event 2 | -11/Junkyard | Met Revision 17 5 | -11/Junkyard | Discovered new exit (range 16) 48 | -11/Junkyard | Entered Materials 164 | -10/Materials | Discovered new exit (range 15) 352 | -10/Materials | Lost 3 parts (1p1n1w) 354 | -10/Materials | Build established: Mutant 370 | -10/Materials | Discovered new exit (range 7) 385 | -10/Materials | Entered Mines 403 | -10/Mines | Assisted by bots powering up and referring to "LRC-V3" 404 | -10/Mines | Met a Derelict bent on vengeance 414 | -10/Mines | Discovered new exit (range 10) 573 | -10/Mines | Discovered new exit (range 8) 627 | -10/Mines | Learned location of Mines (-9) 635 | -10/Mines | Assembled infested the area 666 | -10/Mines | Released all parts (4) 667 | -10/Mines | Core integrity fell below 50% 684 | -10/Mines | Entered Materials 684 | -9/Materials | Evolved 2 slots: Propulsion x2 800 | -9/Materials | Core integrity fell below 50% 811 | -9/Materials | Core integrity fell below 20% 820 | -9/Materials | Destroyed by Y-45 Defender with Beam Rifle Last Messages --------------- 00774_ ALERT: Hostiles spotted, dispatching reinforcements to Terminal M001. 00774_ O-16 Technician locks terminal. 00777_ K-01 Serf collects debris. 00785_ Arm. Wheel destroyed. 00786_ K-01 Serf collects debris. 00798_ K-01 Serf cleans the Neutrino Reactor. 00800_ Slammed into A-02 Transporter. 00803_ Triggered Alarm Trap. 00803_ An alarm sounds. 00803_ ALERT: Alarm triggered, dispatching investigation squad. 00805_ U-05 Engineer lays Concrete. 00805_ T-07 Excavator is excavating. 00808_ Critical hit (Burn: +37). 00809_ W-16 Scout distress signal alerts nearby ally. 00809_ T-07 Excavator is excavating. 00813_ Critical hit (Burn: +37). 00814_ S-10 Pest destroyed. 00818_ U-05 Engineer destroyed. 00819_ S-10 Pest destroyed. Map ----- +----------------------------------------------------+ | | | | | | | | | | | | | | | | | | | | | | | | | ?????????????????????????????????????????????????? | | ?????????????????????????????????????????????????? | | ?????????????????????????????????????????????????? | | ?????????????????????????????????????????????????? | | ?????????????????????????????????????????????????? | | ?????????????????????????????????????????????????? | | ?????????????????????????????????????????????????? | | ?????????????????????????????????????????????????? | | ??###????????????????????????????????????????????? | | ?? ????????????????????????????????????????????? | | ?""" ?????????#####?????????#???????????????????? | | ?"""" ?????????# #??????## ###?????????????????? | | """"" ?######### ######## #?????????????????? | | """"" ?# = @ #?????????????????? | | """ # |% u Y +?????????????????? | | # T=g #?????????????????? | | + s% s w####### #?????????????????? | | # g s #??????# ##?????????????????? | | ######### g""" #??????? #??????????????????? | | ????##### = """ #???????w #??????????????????? | | ????#!! % """ #???????? #??????????????????? | | ????#!! %[= #???????? #??????????????????? | | ????#!! [ #???????? #??????????????????? | | ????#!! #### #????????? #??????????????????? | | ????#!! #??# #????????? #??????????????????? | | ????#!! #??# #??????????#??????????????????? | | ???##### ##?# #?????????????????????????????? | | ####### #?# #?????????????????????????????? | | #?? +?????????????????????????????? | | #?? ??????????????????????????????? | | #???????????????????????????????????? | | ####/### #???????????????????????????????????? | | # #######???????????????????????????????????? | | # #?????????????????????????????????????????? | | # """#?????????????????????????????????????????? | | # """#?????????????????????????????????????????? | | # """#?????????????????????????????????????????? | | # #?????????????????????????????????????????? | +----------------------------------------------------+ Best States ------------- Heat Dissipation 28 Energy Generation 10 Energy Capacity 250 Matter Stores 300 Matter Capacity 300 Sight Range 16 Terrain Scan Density 10 Resistance: KI 20 Resistance: TH 20 Resistance: EX 20 Resistance: EM 20 Resistance: I 20 Resistance: S 20 Resistance: P 20 Evasion (%) 55 Offensive Hacking 10 Item Schematics ----------------- None Robot Schematics ------------------ None Fabricated ------------ Nothing Alien Tech Used ----------------- None Achievements -------------- None Challenges ------------ None Game ------ Seed RefineryMediumExpander Manual? 0 Play Time 00:11:57 Cumulative 146.1 hours Start 2023.06.04 @ 19:53:58 End 2023.06.04 @ 20:06:20 Sessions 1 Manual Loads 0 Difficulty Adventurer Special Mode None Game No. 77 Rogue 26 Adventurer 51 Explorer 0 Win Type - Total 9 Types 7/0/0/2/0/0/0/0/0 Lore% 65 Gallery% 73 Achievement% 58 Wizard Run 0 Options --------- ASCII 0 Keyboard 0 Movement Numpad Keybinds 0 Fullscreen 1 Font 24/Smallcaps Map View 76x50 Tactical HUD 1 Map Filters NONE Filters NONE Steam 1 RUN: 2e2882f8-2f70-4e19-abef-70d6f9d646fc